[Event "*** Titled Tuesday 3|2 Blitz"]
[Site "Chess.com"]
[Date "2016.09.06"]
[Round "2"]
[White "Kouzari"]
[Black "ShimanovAlex"]
[Result "1-0"]
[WhiteElo "2473"]
[BlackElo "2544"]
[TimeControl "180+2"]
[EndTime "17:22:02 PDT"]
[Termination "Kouzari won by resignation"]

1. d4 {[%clk 0:03:02]} 1... Nf6 {[%clk 0:02:58.1]} 2. c4 {[%clk 0:03:03.4]} 2...
g6 {[%clk 0:02:59.5]} 3. Nc3 {[%clk 0:03:04.8]} 3... Bg7 {[%clk 0:03:01.1]} 4.
e4 {[%clk 0:03:06.1]} 4... O-O {[%clk 0:03:02.4]} 5. f3 {[%clk 0:03:07.8]} 5...
d6 {[%clk 0:03:00.9]} 6. Be3 {[%clk 0:03:09.2]} 6... Nc6 {[%clk 0:03:01.9]} 7.
Qd2 {[%clk 0:03:10.4]} 7... a6 {[%clk 0:03:03.2]} 8. Nge2 {[%clk 0:03:12]} 8...
Na5 {[%clk 0:03:02.1]} 9. Ng3 {[%clk 0:03:09]} 9... b5 {[%clk 0:03:02.1]} 10.
Bh6 {[%clk 0:03:07.5]} 10... Nxc4 {[%clk 0:02:56.9]} 11. Bxc4 {[%clk 0:03:08]}
11... bxc4 {[%clk 0:02:58.8]} 12. h4 {[%clk 0:03:08.8]} 12... Bh8 {[%clk
0:02:48.2]} 13. Bxf8 {[%clk 0:03:09.1]} 13... Qxf8 {[%clk 0:02:47.2]} 14. h5
{[%clk 0:02:59.9]} 14... Rb8 {[%clk 0:02:46.9]} 15. hxg6 {[%clk 0:02:56.6]}
15... hxg6 {[%clk 0:02:45.7]} 16. O-O-O {[%clk 0:02:32.3]} 16... c5 {[%clk
0:02:21.9]} 17. dxc5 {[%clk 0:02:28.2]} 17... Ne8 {[%clk 0:02:18.7]} 18. cxd6
{[%clk 0:02:18.1]} 18... Nxd6 {[%clk 0:02:18.2]} 19. Rxh8+ {[%clk 0:01:58.7]}
19... Kxh8 {[%clk 0:02:17.9]} 20. Rh1+ {[%clk 0:01:27.3]} 20... Kg8 {[%clk
0:02:17.4]} 21. Nd5 {[%clk 0:01:26]} 21... Rb7 {[%clk 0:02:08.1]} 22. Qc3 {[%clk
0:01:05.5]} 22... Qg7 {[%clk 0:02:05.9]} 23. e5 {[%clk 0:00:57.7]} 23... Nf5
{[%clk 0:02:02.4]} 24. Nxf5 {[%clk 0:00:54.4]} 24... Bxf5 {[%clk 0:02:00.5]} 25.
Qd4 {[%clk 0:00:41.6]} 25... Rd7 {[%clk 0:01:55.4]} 26. Nxe7+ {[%clk 0:00:34.6]}
26... Kf8 {[%clk 0:01:55.4]} 27. Nxf5 {[%clk 0:00:35.6]} 27... Rxd4 {[%clk
0:01:56.2]} 28. Nxg7 {[%clk 0:00:37.2]} 28... Kxg7 {[%clk 0:01:58.1]} 29. Re1
{[%clk 0:00:36.7]} 29... g5 {[%clk 0:01:52.7]} 30. Re4 {[%clk 0:00:22.8]} 30...
Rd5 {[%clk 0:01:53]} 31. Rxc4 {[%clk 0:00:21.5]} 31... Rxe5 {[%clk 0:01:54.2]}
32. Re4 {[%clk 0:00:21.5]} 32... Rd5 {[%clk 0:01:54.2]} 33. Kc2 {[%clk
0:00:22.6]} 33... Kg6 {[%clk 0:01:52.8]} 34. g4 {[%clk 0:00:23.2]} 34... a5
{[%clk 0:01:52.5]} 35. a3 {[%clk 0:00:24]} 35... f5 {[%clk 0:01:51.9]} 36. gxf5+
{[%clk 0:00:22.2]} 36... Kxf5 {[%clk 0:01:52.8]} 37. b4 {[%clk 0:00:21.4]} 37...
axb4 {[%clk 0:01:53.5]} 38. axb4 {[%clk 0:00:21.7]} 38... Rd8 {[%clk 0:01:46.9]}
39. Rc4 {[%clk 0:00:22.2]} 39... Rb8 {[%clk 0:01:41]} 40. Kb3 {[%clk 0:00:22.9]}
40... Ke5 {[%clk 0:01:39.6]} 41. Rc7 {[%clk 0:00:18.2]} 41... Rf8 {[%clk
0:01:39.7]} 42. Rc3 {[%clk 0:00:16.7]} 42... Kd5 {[%clk 0:01:39.6]} 43. b5
{[%clk 0:00:15.2]} 43... Rf4 {[%clk 0:01:37.3]} 44. Ka3 {[%clk 0:00:13.1]} 44...
Kd4 {[%clk 0:01:26.8]} 45. Rb3 {[%clk 0:00:14.1]} 45... Rf7 {[%clk 0:00:55]} 46.
b6 {[%clk 0:00:14.5]} 46... Rb7 {[%clk 0:00:52.1]} 47. Ka4 {[%clk 0:00:15.4]}
47... Kc5 {[%clk 0:00:49.7]} 48. Ka5 {[%clk 0:00:16.1]} 48... Rb8 {[%clk
0:00:50.9]} 49. b7 {[%clk 0:00:15.9]} 49... Kc4 {[%clk 0:00:49.2]} 50. Rb1
{[%clk 0:00:16.2]} 1-0

[Event "*** Titled Tuesday 3|2 Blitz"]
[Site "Chess.com"]
[Date "2016.09.06"]
[Round "2"]
[White "IamSchrodingersCat"]
[Black "BellJackson95"]
[Result "0-1"]
[WhiteElo "2253"]
[BlackElo "2167"]
[TimeControl "180+2"]
[EndTime "17:22:19 PDT"]
[Termination "BellJackson95 won by resignation"]

1. e4 {[%clk 0:03:01.9]} 1... e5 {[%clk 0:02:57.4]} 2. Nf3 {[%clk 0:03:02.8]}
2... Nc6 {[%clk 0:02:58.2]} 3. Bb5 {[%clk 0:03:03.1]} 3... f5 {[%clk 0:02:57.4]}
4. d3 {[%clk 0:03:02.3]} 4... fxe4 {[%clk 0:02:57.8]} 5. dxe4 {[%clk 0:03:04.2]}
5... Nf6 {[%clk 0:02:58.9]} 6. O-O {[%clk 0:03:04.3]} 6... Bc5 {[%clk
0:02:59.5]} 7. Qd3 {[%clk 0:03:04.5]} 7... d6 {[%clk 0:02:55]} 8. Qc4 {[%clk
0:02:55.8]} 8... Bd7 {[%clk 0:02:53]} 9. Nc3 {[%clk 0:02:49]} 9... Qe7 {[%clk
0:02:53]} 10. Bg5 {[%clk 0:02:46.2]} 10... a6 {[%clk 0:02:40.5]} 11. Bxc6 {[%clk
0:02:40.5]} 11... bxc6 {[%clk 0:02:33.4]} 12. b4 {[%clk 0:02:40.6]} 12... Be6
{[%clk 0:02:19.8]} 13. Qd3 {[%clk 0:02:34.4]} 13... Bxb4 {[%clk 0:02:19.4]} 14.
Rab1 {[%clk 0:02:35.6]} 14... Bc5 {[%clk 0:02:08.6]} 15. a4 {[%clk 0:02:25.8]}
15... O-O {[%clk 0:02:07.2]} 16. h3 {[%clk 0:02:26.8]} 16... h6 {[%clk
0:02:07.7]} 17. Be3 {[%clk 0:02:24.8]} 17... Bxe3 {[%clk 0:02:04.4]} 18. Qxe3
{[%clk 0:02:26.7]} 18... Nh5 {[%clk 0:01:55.7]} 19. Rb7 {[%clk 0:02:18.5]} 19...
Bc8 {[%clk 0:01:47.8]} 20. Rbb1 {[%clk 0:02:11]} 20... Nf4 {[%clk 0:01:47.3]}
21. Ne2 {[%clk 0:02:07.1]} 21... Qf7 {[%clk 0:01:35.1]} 22. Nd2 {[%clk
0:01:50.2]} 22... Qg6 {[%clk 0:01:26.4]} 23. Nxf4 {[%clk 0:01:48.2]} 23... exf4
{[%clk 0:01:25.9]} 24. Qd3 {[%clk 0:01:37.3]} 24... a5 {[%clk 0:00:56.1]} 25.
Rfe1 {[%clk 0:01:32.8]} 25... Qg5 {[%clk 0:00:45.1]} 26. Kh2 {[%clk 0:01:23.6]}
26... f3 {[%clk 0:00:36.4]} 27. Nxf3 {[%clk 0:01:16]} 27... Qf4+ {[%clk
0:00:36.2]} 28. Kh1 {[%clk 0:00:56.1]} 28... Bxh3 {[%clk 0:00:34.8]} 29. Ng1
{[%clk 0:00:48.6]} 29... Be6 {[%clk 0:00:30.5]} 30. Re3 {[%clk 0:00:37.6]} 30...
Qxf2 {[%clk 0:00:22.3]} 31. Nf3 {[%clk 0:00:36.6]} 31... Qg3 {[%clk 0:00:19.4]}
32. Kg1 {[%clk 0:00:33.4]} 32... Bh3 {[%clk 0:00:18.1]} 33. Qd2 {[%clk
0:00:20.1]} 33... Bg4 {[%clk 0:00:13.4]} 34. Nh2 {[%clk 0:00:17.3]} 34... Qf4
{[%clk 0:00:12.1]} 35. Rbe1 {[%clk 0:00:17.3]} 35... Be6 {[%clk 0:00:11.5]} 36.
g3 {[%clk 0:00:16.9]} 36... Qg5 {[%clk 0:00:11.6]} 37. Qg2 {[%clk 0:00:17.6]}
37... Rf7 {[%clk 0:00:11.9]} 38. Nf3 {[%clk 0:00:18.2]} 38... Qe7 {[%clk
0:00:11.7]} 39. e5 {[%clk 0:00:18.6]} 39... d5 {[%clk 0:00:12.2]} 40. Nd4 {[%clk
0:00:18.5]} 40... c5 {[%clk 0:00:11.9]} 41. Nb5 {[%clk 0:00:13.7]} 41... Raf8
{[%clk 0:00:12]} 42. R3e2 {[%clk 0:00:08.9]} 42... Qg5 {[%clk 0:00:12.4]} 43.
Nc3 {[%clk 0:00:08.7]} 43... Rf3 {[%clk 0:00:12.6]} 44. Re3 {[%clk 0:00:09.9]}
44... Rxe3 {[%clk 0:00:11.6]} 0-1

[Event "*** Titled Tuesday 3|2 Blitz"]
[Site "Chess.com"]
[Date "2016.09.06"]
[Round "2"]
[White "CraiggoryC"]
[Black "akinov-akinseye"]
[Result "1-0"]
[WhiteElo "2024"]
[BlackElo "2029"]
[TimeControl "180+2"]
[EndTime "17:23:14 PDT"]
[Termination "CraiggoryC won by checkmate"]

1. e4 {[%clk 0:02:54.3]} 1... e5 {[%clk 0:03:00.9]} 2. Nf3 {[%clk 0:02:54.4]}
2... Nc6 {[%clk 0:03:02.2]} 3. Bb5 {[%clk 0:02:55.9]} 3... Nf6 {[%clk
0:03:03.4]} 4. O-O {[%clk 0:02:55.6]} 4... Bc5 {[%clk 0:03:04.6]} 5. c3 {[%clk
0:02:54.3]} 5... O-O {[%clk 0:03:02.4]} 6. d4 {[%clk 0:02:54.6]} 6... Bb6 {[%clk
0:03:03.4]} 7. Bg5 {[%clk 0:02:41.1]} 7... d6 {[%clk 0:03:03]} 8. a4 {[%clk
0:02:29.7]} 8... a6 {[%clk 0:02:36.8]} 9. Bxc6 {[%clk 0:02:30.2]} 9... bxc6
{[%clk 0:02:37.7]} 10. dxe5 {[%clk 0:02:31]} 10... dxe5 {[%clk 0:02:33.4]} 11.
Qxd8 {[%clk 0:02:31.2]} 11... Rxd8 {[%clk 0:02:33.9]} 12. Nxe5 {[%clk 0:02:32]}
12... Re8 {[%clk 0:02:24.7]} 13. Bxf6 {[%clk 0:02:27.3]} 13... gxf6 {[%clk
0:01:50.6]} 14. Nxc6 {[%clk 0:02:27.2]} 14... Rxe4 {[%clk 0:01:47.3]} 15. a5
{[%clk 0:02:24]} 15... Bc5 {[%clk 0:01:43.2]} 16. b4 {[%clk 0:02:18.3]} 16...
Bd6 {[%clk 0:01:43.4]} 17. Nd2 {[%clk 0:02:12.1]} 17... Re2 {[%clk 0:01:31]} 18.
Nc4 {[%clk 0:02:07.1]} 18... Bb7 {[%clk 0:01:11.7]} 19. Nd4 {[%clk 0:02:02.1]}
19... Ree8 {[%clk 0:01:00.8]} 20. Nxd6 {[%clk 0:01:57.1]} 20... cxd6 {[%clk
0:00:58.1]} 21. Rfe1 {[%clk 0:01:58.1]} 21... Rac8 {[%clk 0:00:48.7]} 22. Rxe8+
{[%clk 0:01:54.5]} 22... Rxe8 {[%clk 0:00:47.5]} 23. Nf5 {[%clk 0:01:50.2]}
23... d5 {[%clk 0:00:42.7]} 24. Nd6 {[%clk 0:01:35.5]} 24... Re7 {[%clk
0:00:41.8]} 25. Nxb7 {[%clk 0:01:34.2]} 25... Rxb7 {[%clk 0:00:42.4]} 26. Rd1
{[%clk 0:01:31.6]} 26... Rc7 {[%clk 0:00:41.4]} 27. Rd3 {[%clk 0:01:06.3]} 27...
Kf8 {[%clk 0:00:38.4]} 28. Kf1 {[%clk 0:01:03.8]} 28... Ke7 {[%clk 0:00:38.7]}
29. Ke1 {[%clk 0:01:03.6]} 29... Ke6 {[%clk 0:00:38.6]} 30. Kd2 {[%clk
0:01:04.8]} 30... Ke5 {[%clk 0:00:39.2]} 31. Rh3 {[%clk 0:01:04]} 31... d4
{[%clk 0:00:27.3]} 32. cxd4+ {[%clk 0:01:01.5]} 32... Kxd4 {[%clk 0:00:28.6]}
33. Rxh7 {[%clk 0:01:02.3]} 33... Kc4 {[%clk 0:00:28.8]} 34. Rh4+ {[%clk
0:01:02.9]} 34... Kb3 {[%clk 0:00:28.9]} 35. Rf4 {[%clk 0:00:57.5]} 35... Rc2+
{[%clk 0:00:29.3]} 36. Ke3 {[%clk 0:00:45.1]} 36... Rc3+ {[%clk 0:00:30.3]} 37.
Ke2 {[%clk 0:00:45.9]} 37... Rc6 {[%clk 0:00:30.2]} 38. h4 {[%clk 0:00:45.6]}
38... Re6+ {[%clk 0:00:28.3]} 39. Kf3 {[%clk 0:00:46.3]} 39... Ka4 {[%clk
0:00:22.2]} 40. g4 {[%clk 0:00:43.9]} 40... Kb5 {[%clk 0:00:21.6]} 41. h5 {[%clk
0:00:44.4]} 41... Re8 {[%clk 0:00:13.4]} 42. Rxf6 {[%clk 0:00:39.3]} 42... Kxb4
{[%clk 0:00:12.6]} 43. Rxa6 {[%clk 0:00:40.1]} 43... Kb5 {[%clk 0:00:10.8]} 44.
Rf6 {[%clk 0:00:37.8]} 44... Kxa5 {[%clk 0:00:09.8]} 45. Rxf7 {[%clk 0:00:38.7]}
45... Kb5 {[%clk 0:00:11.1]} 46. h6 {[%clk 0:00:37.8]} 46... Kc5 {[%clk
0:00:09.9]} 47. g5 {[%clk 0:00:34.7]} 47... Rh8 {[%clk 0:00:05.3]} 48. Kg4
{[%clk 0:00:31.8]} 48... Kd6 {[%clk 0:00:06.2]} 49. Kh5 {[%clk 0:00:29.7]} 49...
Ke6 {[%clk 0:00:06.8]} 50. Rf6+ {[%clk 0:00:30.9]} 50... Ke7 {[%clk 0:00:07.5]}
51. f4 {[%clk 0:00:31.8]} 51... Ke8 {[%clk 0:00:08.5]} 52. Kg6 {[%clk
0:00:32.3]} 52... Ke7 {[%clk 0:00:07.2]} 53. Kg7 {[%clk 0:00:33.3]} 53... Ra8
{[%clk 0:00:04.9]} 54. h7 {[%clk 0:00:31.1]} 54... Re8 {[%clk 0:00:04.7]} 55.
h8=Q {[%clk 0:00:29.2]} 55... Rxh8 {[%clk 0:00:05.3]} 56. Kxh8 {[%clk
0:00:30.2]} 56... Ke8 {[%clk 0:00:07.2]} 57. Kg7 {[%clk 0:00:28.1]} 57... Ke7
{[%clk 0:00:08.3]} 58. g6 {[%clk 0:00:28.3]} 58... Ke8 {[%clk 0:00:09.2]} 59.
Rf7 {[%clk 0:00:29.3]} 59... Kd8 {[%clk 0:00:09.8]} 60. Kf6 {[%clk 0:00:30.4]}
60... Ke8 {[%clk 0:00:10.8]} 61. g7 {[%clk 0:00:30.9]} 61... Kd8 {[%clk
0:00:12.6]} 62. g8=Q# {[%clk 0:00:31.8]} 1-0

[Event "*** Titled Tuesday 3|2 Blitz"]
[Site "Chess.com"]
[Date "2016.09.06"]
[Round "2"]
[White "jk13"]
[Black "E-Shaposhnikov"]
[Result "1-0"]
[WhiteElo "2505"]
[BlackElo "2665"]
[TimeControl "180+2"]
[EndTime "17:23:22 PDT"]
[Termination "jk13 won by resignation"]

1. e4 {[%clk 0:03:01.9]} 1... c5 {[%clk 0:02:46.3]} 2. c3 {[%clk 0:03:01.9]}
2... Nf6 {[%clk 0:02:42.1]} 3. e5 {[%clk 0:03:01.4]} 3... Nd5 {[%clk 0:02:43.1]}
4. Bc4 {[%clk 0:03:03.3]} 4... Nb6 {[%clk 0:02:42.7]} 5. Bb3 {[%clk 0:03:04.3]}
5... c4 {[%clk 0:02:44.4]} 6. Bc2 {[%clk 0:03:04.7]} 6... d6 {[%clk 0:02:46.1]}
7. Nf3 {[%clk 0:03:04.3]} 7... dxe5 {[%clk 0:02:45.9]} 8. Nxe5 {[%clk
0:03:05.5]} 8... Qd5 {[%clk 0:02:41.4]} 9. Qe2 {[%clk 0:03:05.8]} 9... f6 {[%clk
0:02:40.4]} 10. Nf3 {[%clk 0:02:55.6]} 10... Nc6 {[%clk 0:02:32.4]} 11. Be4
{[%clk 0:02:53]} 11... Qf7 {[%clk 0:02:21.4]} 12. O-O {[%clk 0:02:51]} 12... e5
{[%clk 0:02:21.8]} 13. d4 {[%clk 0:02:45.5]} 13... cxd3 {[%clk 0:02:21.6]} 14.
Bxd3 {[%clk 0:02:46.4]} 14... Be6 {[%clk 0:02:16.5]} 15. a4 {[%clk 0:02:43.3]}
15... Rd8 {[%clk 0:02:13.5]} 16. a5 {[%clk 0:02:41.5]} 16... Nd5 {[%clk
0:02:14.3]} 17. a6 {[%clk 0:02:40.5]} 17... b6 {[%clk 0:02:08.3]} 18. Bb5 {[%clk
0:02:40.9]} 18... Qd7 {[%clk 0:02:02]} 19. Nbd2 {[%clk 0:02:14.9]} 19... Nf4
{[%clk 0:01:58.8]} 20. Qe4 {[%clk 0:02:14]} 20... Bd5 {[%clk 0:01:55.6]} 21. Qa4
{[%clk 0:02:14.8]} 21... Rc8 {[%clk 0:01:53.6]} 22. Ne4 {[%clk 0:02:14.1]} 22...
Nxg2 {[%clk 0:01:50.1]} 23. Rd1 {[%clk 0:01:23.8]} 23... Ne3 {[%clk 0:01:49.5]}
24. Bxe3 {[%clk 0:01:15.6]} 24... Qg4+ {[%clk 0:01:47.4]} 25. Kf1 {[%clk
0:01:16.7]} 25... Bxe4 {[%clk 0:01:38.1]} 26. Ne1 {[%clk 0:01:05]} 26... Qh3+
{[%clk 0:01:03.6]} 27. Ke2 {[%clk 0:01:01.3]} 27... Qh5+ {[%clk 0:00:57.9]} 28.
f3 {[%clk 0:00:57.9]} 28... Qxh2+ {[%clk 0:00:47.4]} 29. Kf1 {[%clk 0:00:58.7]}
29... Qh1+ {[%clk 0:00:47.7]} 30. Kf2 {[%clk 0:00:57.9]} 30... Qh4+ {[%clk
0:00:40.4]} 31. Kf1 {[%clk 0:00:55.7]} 31... Qh3+ {[%clk 0:00:36.3]} 32. Ke2
{[%clk 0:00:54.3]} 32... Qh2+ {[%clk 0:00:37.4]} 33. Kf1 {[%clk 0:00:52.9]}
33... Qh3+ {[%clk 0:00:38.2]} 34. Kf2 {[%clk 0:00:53.2]} 34... Qh2+ {[%clk
0:00:38.8]} 35. Ng2 {[%clk 0:00:52.9]} 35... Bxf3 {[%clk 0:00:31.3]} 36. Kxf3
{[%clk 0:00:54.8]} 36... Qh3+ {[%clk 0:00:31.4]} 37. Kf2 {[%clk 0:00:55.1]}
37... Qe6 {[%clk 0:00:33]} 38. Qc4 {[%clk 0:00:53.1]} 38... Qxc4 {[%clk
0:00:31.1]} 39. Bxc4 {[%clk 0:00:55]} 39... Nd4 {[%clk 0:00:33]} 40. cxd4 {[%clk
0:00:52.3]} 40... Rxc4 {[%clk 0:00:33.1]} 41. dxe5 {[%clk 0:00:53.7]} 41... fxe5
{[%clk 0:00:29.7]} 42. Bxb6 {[%clk 0:00:51]} 42... axb6 {[%clk 0:00:21]} 43. a7
{[%clk 0:00:52.9]} 43... Bc5+ {[%clk 0:00:22.8]} 44. Kg3 {[%clk 0:00:53.4]}
44... Ke7 {[%clk 0:00:23.6]} 45. a8=Q {[%clk 0:00:53.2]} 45... Rxa8 {[%clk
0:00:20.6]} 46. Rxa8 {[%clk 0:00:55.1]} 46... h5 {[%clk 0:00:20.2]} 47. Ra7+
{[%clk 0:00:52.1]} 47... Kf6 {[%clk 0:00:20.6]} 48. Rf1+ {[%clk 0:00:51.3]}
48... Kg6 {[%clk 0:00:21.5]} 49. Rff7 {[%clk 0:00:51.8]} 49... Rg4+ {[%clk
0:00:20]} 50. Kh3 {[%clk 0:00:51.6]} 50... Kh6 {[%clk 0:00:21.2]} 51. Nh4 {[%clk
0:00:49.7]} 51... g6 {[%clk 0:00:18.9]} 52. Rh7+ {[%clk 0:00:47.7]} 52... Kg5
{[%clk 0:00:20.5]} 53. Nf3+ {[%clk 0:00:34.5]} 53... Kf4 {[%clk 0:00:21.4]} 54.
Rhf7+ {[%clk 0:00:34.9]} 54... Ke4 {[%clk 0:00:17.3]} 55. Ra4+ {[%clk
0:00:34.1]} 55... Bd4 {[%clk 0:00:18.5]} 56. Nxd4 {[%clk 0:00:32.3]} 56... exd4
{[%clk 0:00:20.4]} 57. Rf6 {[%clk 0:00:32]} 57... b5 {[%clk 0:00:15.9]} 58. Rb4
{[%clk 0:00:32.9]} 58... Rg1 {[%clk 0:00:13.5]} 59. Rxb5 {[%clk 0:00:28.8]}
59... d3 {[%clk 0:00:12.8]} 60. Re6+ {[%clk 0:00:29.9]} 60... Kf3 {[%clk
0:00:13.3]} 61. Rf6+ {[%clk 0:00:29.2]} 61... Ke4 {[%clk 0:00:13.6]} 62. Rb8
{[%clk 0:00:22.7]} 62... d2 {[%clk 0:00:12.7]} 63. Re8+ {[%clk 0:00:24]} 63...
Kd3 {[%clk 0:00:14.2]} 64. Rd6+ {[%clk 0:00:24.7]} 64... Kc2 {[%clk 0:00:14.7]}
65. Rc8+ {[%clk 0:00:25.4]} 65... Kd1 {[%clk 0:00:12.9]} 66. Rcd8 {[%clk
0:00:25.3]} 1-0

[Event "*** Titled Tuesday 3|2 Blitz"]
[Site "Chess.com"]
[Date "2016.09.06"]
[Round "2"]
[White "rdclayton"]
[Black "Kawhi_Leonard2"]
[Result "0-1"]
[WhiteElo "2092"]
[BlackElo "2022"]
[TimeControl "180+2"]
[EndTime "17:23:37 PDT"]
[Termination "Kawhi_Leonard2 won by checkmate"]

1. d4 {[%clk 0:03:01.9]} 1... Nf6 {[%clk 0:03:00.1]} 2. Nf3 {[%clk 0:03:02.5]}
2... e6 {[%clk 0:03:00.9]} 3. c4 {[%clk 0:03:03.4]} 3... d5 {[%clk 0:03:01.3]}
4. g3 {[%clk 0:03:02.1]} 4... Be7 {[%clk 0:03:01.6]} 5. Bg2 {[%clk 0:03:03.5]}
5... O-O {[%clk 0:03:03]} 6. O-O {[%clk 0:03:03.5]} 6... dxc4 {[%clk 0:03:03.7]}
7. Qc2 {[%clk 0:03:00.4]} 7... a6 {[%clk 0:03:04.5]} 8. Qxc4 {[%clk 0:02:59.5]}
8... b5 {[%clk 0:03:04.4]} 9. Qc2 {[%clk 0:03:00.9]} 9... Bb7 {[%clk 0:03:04.9]}
10. Rd1 {[%clk 0:03:01.5]} 10... Nc6 {[%clk 0:02:57.9]} 11. a3 {[%clk 0:02:33]}
11... Ra7 {[%clk 0:02:44.2]} 12. Nc3 {[%clk 0:02:16.5]} 12... Qa8 {[%clk
0:02:44.1]} 13. Bf4 {[%clk 0:02:10.2]} 13... Rc8 {[%clk 0:02:42.7]} 14. e4
{[%clk 0:02:04.8]} 14... Nd8 {[%clk 0:02:40.7]} 15. Ne5 {[%clk 0:01:42]} 15...
c5 {[%clk 0:02:32.2]} 16. d5 {[%clk 0:01:36]} 16... b4 {[%clk 0:02:32.4]} 17. d6
{[%clk 0:01:33.5]} 17... Bxd6 {[%clk 0:02:26.8]} 18. Rxd6 {[%clk 0:00:54.9]}
18... bxc3 {[%clk 0:02:26.4]} 19. f3 {[%clk 0:00:31.1]} 19... cxb2 {[%clk
0:02:19.7]} 20. Qxb2 {[%clk 0:00:30.2]} 20... Nc6 {[%clk 0:01:58.7]} 21. Nxc6
{[%clk 0:00:24.2]} 21... Bxc6 {[%clk 0:01:55.8]} 22. Rad1 {[%clk 0:00:23.6]}
22... Rd7 {[%clk 0:01:39]} 23. Be5 {[%clk 0:00:18.1]} 23... Rxd6 {[%clk
0:01:32.2]} 24. Rxd6 {[%clk 0:00:20]} 24... Ne8 {[%clk 0:01:32.1]} 25. Rd1
{[%clk 0:00:18.2]} 25... f6 {[%clk 0:01:32.2]} 26. Bf4 {[%clk 0:00:17.3]} 26...
e5 {[%clk 0:01:18.7]} 27. Be3 {[%clk 0:00:18]} 27... Bb5 {[%clk 0:01:20.3]} 28.
Qc3 {[%clk 0:00:16.8]} 28... Qc6 {[%clk 0:01:17.8]} 29. Rc1 {[%clk 0:00:16.2]}
29... c4 {[%clk 0:01:15.8]} 30. Rd1 {[%clk 0:00:13.2]} 30... Nd6 {[%clk
0:01:16]} 31. Bh3 {[%clk 0:00:10.4]} 31... Re8 {[%clk 0:01:06]} 32. Qb4 {[%clk
0:00:09]} 32... Rd8 {[%clk 0:00:44.9]} 33. Bc5 {[%clk 0:00:08.1]} 33... Nb7
{[%clk 0:00:42.8]} 34. Rxd8+ {[%clk 0:00:06]} 34... Nxd8 {[%clk 0:00:43.6]} 35.
Bf1 {[%clk 0:00:05.7]} 35... Nb7 {[%clk 0:00:43.6]} 36. Be3 {[%clk 0:00:04.5]}
36... c3 {[%clk 0:00:37]} 37. Bg2 {[%clk 0:00:02.8]} 37... c2 {[%clk 0:00:33.1]}
38. Bc1 {[%clk 0:00:02.6]} 38... Nc5 {[%clk 0:00:31.7]} 39. Bf1 {[%clk
0:00:02.6]} 39... Bxf1 {[%clk 0:00:30.7]} 40. Kxf1 {[%clk 0:00:03.1]} 40... Qb5+
{[%clk 0:00:31.9]} 41. Qxb5 {[%clk 0:00:04.1]} 41... axb5 {[%clk 0:00:32.9]} 42.
Ke2 {[%clk 0:00:05.7]} 42... Nb3 {[%clk 0:00:33.7]} 43. Bb2 {[%clk 0:00:06.1]}
43... c1=Q {[%clk 0:00:33.9]} 44. Bxc1 {[%clk 0:00:07.5]} 44... Nxc1+ {[%clk
0:00:35]} 45. Kd2 {[%clk 0:00:07.1]} 45... Nb3+ {[%clk 0:00:34.7]} 46. Kc3
{[%clk 0:00:07.9]} 46... Na5 {[%clk 0:00:35.6]} 47. Kb4 {[%clk 0:00:07.2]} 47...
Nc4 {[%clk 0:00:35.9]} 48. a4 {[%clk 0:00:07.9]} 48... Kf7 {[%clk 0:00:20.4]}
49. Kxb5 {[%clk 0:00:06]} 49... Nd6+ {[%clk 0:00:16.4]} 50. Kc6 {[%clk
0:00:05.3]} 50... Ke6 {[%clk 0:00:17.2]} 51. a5 {[%clk 0:00:06]} 51... Nc8
{[%clk 0:00:11.4]} 52. Kc7 {[%clk 0:00:06.6]} 52... Na7 {[%clk 0:00:11.3]} 53.
Kb6 {[%clk 0:00:07.7]} 53... Nc8+ {[%clk 0:00:11.5]} 54. Kc7 {[%clk 0:00:08.5]}
54... Na7 {[%clk 0:00:11.3]} 55. a6 {[%clk 0:00:06]} 55... g6 {[%clk 0:00:08.5]}
56. h4 {[%clk 0:00:05.4]} 56... f5 {[%clk 0:00:08.4]} 57. exf5+ {[%clk
0:00:05.9]} 57... gxf5 {[%clk 0:00:08.1]} 58. Kb6 {[%clk 0:00:04.8]} 58... Kd7
{[%clk 0:00:05.3]} 59. Kxa7 {[%clk 0:00:04.7]} 59... Kc7 {[%clk 0:00:06.3]} 60.
Ka8 {[%clk 0:00:02.9]} 60... h5 {[%clk 0:00:05.2]} 61. a7 {[%clk 0:00:02.2]}
61... e4 {[%clk 0:00:05.8]} 62. fxe4 {[%clk 0:00:04]} 62... fxe4 {[%clk
0:00:06.9]} 63. g4 {[%clk 0:00:05.9]} 63... e3 {[%clk 0:00:06.3]} 64. gxh5
{[%clk 0:00:05.2]} 64... e2 {[%clk 0:00:08.2]} 65. h6 {[%clk 0:00:07.1]} 65...
e1=Q {[%clk 0:00:09.5]} 66. h7 {[%clk 0:00:09]} 66... Qe4# {[%clk 0:00:10.4]}
0-1